Workbook

Sheet Sm Nd
B1: Mmar | C1: Mmar | D1: Carb | E1: lamp | F1: carb | G1: sye | H1: carb | I1: GLM | J1: sye | K1: qfp | L1: qp | M1: carb | N1: mmar | O1: mmar
A2: Lab # | B2: CS1 | C2: CS2 | D2: CS3 | E2: CS4 | F2: CS5 | G2: CS6 | H2: CS7 | I2: CS8 | J2: CS9 | K2: CS10 | L2: CS11 | M2: CS12 | N2: CS13 | O2: CS14 | P2: CS15 | Q2: CS16
A3: sample | B3: EY118558 | C3: EY118623 | D3: EY118045 | E3: EX094989 | F3: EX094653 | G3: EX094558 | H3: EY118339 | I3: EX094519 | J3: EX094492 | K3: EX095709 | L3: EX096250 | M3: EX095667 | N3: EY118801 | O3: EY118795 | P3: MILO 014 30.2 | Q3: MILO 01553.05 | S3: G2 #96 | T3: G2 #97
A4: input age of rock T (Ma) | B4: 1630 | C4: 1630 | D4: 1645 | E4: 1620 | F4: 1645 | G4: 1615 | H4: 1645 | I4: 1615 | J4: 1615 | K4: 1642 | L4: 1612 | M4: 1645 | N4: 1630 | O4: 1630 | P4: 1620 | Q4: 1620
A5: Unmixed 143/144Nd | B5: =MarlinasNdIC(B38,B42,B44,B45,B47) -> 0.5116987889 | C5: 0.5115173951 | D5: 0.5117370908 | E5: 0.5116284742 | F5: 0.5115883593 | G5: 0.5119100982 | H5: 0.51172678 | I5: 0.5119762763 | J5: 0.5119649157 | K5: 0.511637643 | L5: 0.5117168904 | M5: 0.5120040853 | N5: 0.5116950549 | O5: 0.5116958423 | P5: 0.5112014879 | Q5: 0.5111858764 | S5: =MarlinasNdIC(S38,S42,S44,S45,S47) -> 0.5121982597 | T5: =MarlinasNdIC(T38,T42,T44,T45,T47) -> 0.5122117391 | U5: =AVERAGE(R5:T5) -> 0.5122049994 | V5: =_xlfn.STDEV.S(R5:T5)*2 -> 1.906272544e-05
A6: Nd ugg-1 | B6: =MarlinasNdID(B38,B42,B44,B47,100) -> 14.72881839 | C6: 17.45141507 | D6: 8.063435355 | E6: 35.59479712 | F6: 10.25738845 | G6: 16.54124605 | H6: 20.58338226 | I6: 13.51206744 | J6: 32.16024417 | K6: 39.88423021 | L6: 125.2439325 | M6: 5.74589873 | N6: 10.20499948 | O6: 8.470595614 | P6: 814.0626127 | Q6: 719.9454099 | S6: =MarlinasNdID(S38,S42,S44,S47,100) -> 52.90627508 | T6: =MarlinasNdID(T38,T42,T44,T47,100) -> 54.08883147
A7: Sm ugg-1 | B7: =SmD(B38,B42,B44,B48,B49,50) -> 3.066987684 | C7: 3.319521514 | D7: 1.666574368 | E7: 7.244156657 | F7: 1.916018348 | G7: 3.969069712 | H7: 4.403967831 | I7: 3.151199558 | J7: 8.030250521 | K7: 7.991350778 | L7: 23.64802337 | M7: 1.417383505 | N7: 2.094272632 | O7: 1.749161101 | P7: 111.5730105 | Q7: 99.67275046 | S7: =SmD(S38,S42,S44,S48,S49,50) -> 7.041003289 | T7: =SmD(T38,T42,T44,T48,T49,50) -> 7.099845003
A8: 147Sm/144Nd | B8: =(B7/150.36*0.15)/(B6/144.24*0.238) -> 0.1258959686 | C8: 0.115003892 | D8: 0.1249603659 | E8: 0.1230464278 | F8: =(F7/150.36*0.15)/(F6/144.24*0.238) -> 0.112935521 | G8: 0.1450735384 | H8: 0.1293585375 | I8: 0.141000873 | J8: 0.1509654117 | K8: 0.1211397516 | L8: 0.1141578679 | M8: 0.1491410189 | N8: 0.1240760414 | O8: 0.1248485666 | P8: 0.08286460048 | Q8: 0.08370368429
A9: eNd (T=0) | B9: =((B5/$B$23)-1)*10000 -> -18.32113669 | C9: =((C5/$B$23)-1)*10000 -> -21.85957592 | D9: =((D5/$B$23)-1)*10000 -> -17.57398388 | E9: =((E5/$B$23)-1)*10000 -> -19.69276093 | F9: =((F5/$B$23)-1)*10000 -> -20.47528055 | G9: -14.19913896 | H9: -17.77511597 | I9: -12.90820681 | J9: -13.12981635 | K9: -19.51390613 | L9: -17.96803165 | M9: -12.36573739 | N9: -18.39397596 | O9: -18.37861687 | P9: -28.0219585 | Q9: -28.32649152
A11: 143Nd/144Nd (T) | B11: =B5-B8*(EXP($B$22*B4*1000000)-1) -> 0.5103495338 | C11: =C5-C8*(EXP($B$22*C4*1000000)-1) -> 0.5102848728 | D11: =D5-D8*(EXP($B$22*D4*1000000)-1) -> 0.5103854722 | E11: =E5-E8*(EXP($B$22*E4*1000000)-1) -> 0.5103178915 | F11: =F5-F8*(EXP($B$22*F4*1000000)-1) -> 0.510366806 | G11: 0.5103696963 | H11: 0.5103275891 | I11: 0.5104791183 | J11: 0.5103619535 | K11: 0.510329752 | L11: 0.5105070171 | M11: 0.5103909196 | N11: 0.5103653044 | O11: 0.5103578124 | P11: 0.5103188868 | Q11: 0.5102943381
A12: eNd (T) | B12: =((B11/B16)-1)*10000 -> -3.554343644 | C12: -4.820888378 | D12: -2.468657224 | E12: -4.428561929 | F12: =((F11/F16)-1)*10000 -> -2.834294771 | G12: -3.541078618 | H12: -3.602482502 | I12: -1.397863374 | J12: -3.692734853 | K12: -3.636460228 | L12: -0.927764844 | M12: -2.361952289 | N12: -3.245438858 | O12: -3.392187222 | P12: -4.409067178 | Q12: -4.889901461
A13: TDM (Ma) | B13: =(1/$B$22)*(LN((1+(B5-$B$25)/(B8-$B$26))))/1000000 -> 2484.087115 | C13: =(1/$B$22)*(LN((1+(C5-$B$25)/(C8-$B$26))))/1000000 -> 2488.618212 | D13: =(1/$B$22)*(LN((1+(D5-$B$25)/(D8-$B$26))))/1000000 -> 2393.960532 | E13: =(1/$B$22)*(LN((1+(E5-$B$25)/(E8-$B$26))))/1000000 -> 2522.975161 | F13: =(1/$B$22)*(LN((1+(F5-$B$25)/(F8-$B$26))))/1000000 -> 2333.156621 | G13: 2706.668022 | H13: 2534.827387 | I13: 2422.485238 | J13: 2825.804044 | K13: 2457.086701 | L13: 2168.37943 | M13: 2657.600067 | N13: 2440.701053 | O13: 2460.2427 | P13: 2246.766916 | Q13: 2279.055749
A14: TCHUR (Ma) | B14: =(1/$B$22)*LN((1+((B5-$B$23)/(B8-$B$24))))/1000000 -> 2017.774391 | C14: =(1/$B$22)*LN((1+((C5-$B$23)/(C8-$B$24))))/1000000 -> 2085.643408 | D14: =(1/$B$22)*LN((1+((D5-$B$23)/(D8-$B$24))))/1000000 -> 1910.879775 | E14: =(1/$B$22)*LN((1+((E5-$B$23)/(E8-$B$24))))/1000000 -> 2084.358593 | F14: =(1/$B$22)*LN((1+((F5-$B$23)/(F8-$B$24))))/1000000 -> 1906.389509 | G14: 2144.939542 | H14: 2058.17434 | I14: 1809.086343 | J14: 2238.794719 | K14: 2013.706347 | L14: 1698.906246 | M14: 2028.851272 | N14: 1975.23614 | O14: 1994.708504 | P14: 1919.144015 | Q14: 1954.194889
A15: DM at age of rock (T) | B15: =($B$25-$B$26*(EXP($B$22*B4*1000000)-1)) -> 0.5108511558 | C15: =($B$25-$B$26*(EXP($B$22*C4*1000000)-1)) -> 0.5108511558 | D15: =($B$25-$B$26*(EXP($B$22*D4*1000000)-1)) -> 0.5108298868 | E15: =($B$25-$B$26*(EXP($B$22*E4*1000000)-1)) -> 0.510865334 | F15: =($B$25-$B$26*(EXP($B$22*F4*1000000)-1)) -> 0.5108298868 | G15: 0.5108724227 | H15: 0.5108298868 | I15: 0.5108724227 | J15: 0.5108724227 | K15: 0.5108341408 | L15: 0.5108766759 | M15: 0.5108298868 | N15: 0.5108511558 | O15: 0.5108511558 | P15: 0.510865334 | Q15: 0.510865334
A16: CHUR at age of rock (T) | B16: =$B$23-$B$24*(EXP($B$22*B4*1000000)-1) -> 0.5105309941 | C16: =$B$23-$B$24*(EXP($B$22*C4*1000000)-1) -> 0.5105309941 | D16: =$B$23-$B$24*(EXP($B$22*D4*1000000)-1) -> 0.5105115 | E16: =$B$23-$B$24*(EXP($B$22*E4*1000000)-1) -> 0.5105439891 | F16: =$B$23-$B$24*(EXP($B$22*F4*1000000)-1) -> 0.5105115 | G16: 0.5105504863 | H16: 0.5105115 | I16: 0.5105504863 | J16: 0.5105504863 | K16: 0.5105153989 | L16: 0.5105543845 | M16: 0.5105115 | N16: 0.5105309941 | O16: 0.5105309941 | P16: 0.5105439891 | Q16: 0.5105439891
A19: JNdi-1 for Phoenix TIMS measurement bias 15/4/2020 to 18/4/2020, 143/144Nd = .512103±.000014 (2sd).
A21: Nd Model assumptions
A22: Lambda | B22: 6.54e-12 | C22: a-1
A23: 143Nd/144Nd CHUR T=0 | B23: 0.512638 | C23: Goldstein et al (1984)
A24: 147Sm/144Nd CHUR T=0 | B24: 0.1966 | C24: Goldstein et al (1984)
A25: 143Nd/144Nd DM T=0 | B25: 0.51315 | C25: Goldstein et al (1984)
A26: 147Sm/144Nd DM T=0 | B26: 0.2145 | C26: Goldstein et al (1984)
A27: Earth Age | B27: 4615000000 | C27: a
A35: Sample measurements
B36: High Pressure | C36: High Pressure | D36: High Pressure | E36: High Pressure | F36: High Pressure | G36: High Pressure | H36: High Pressure | I36: High Pressure | J36: High Pressure | K36: High Pressure | L36: High Pressure | M36: High Pressure | N36: High Pressure | O36: High Pressure | P36: High Pressure | Q36: High Pressure
A37: bomb# | B37: 15 | C37: 101 | D37: 43 | E37: 13 | F37: 11 | G37: 100 | H37: 104 | I37: 21 | J37: 17 | K37: 26 | L37: 45 | M37: 28 | N37: 29 | O37: 20 | P37: 32 | Q37: 41 | S37: 33 | T37: 39
A38: Sm Nd spike | B38: H rm3 | C38: H rm3 | D38: H rm3 | E38: H rm3 | F38: H rm3 | G38: H rm3 | H38: H rm3 | I38: H rm3 | J38: H rm3 | K38: H rm3 | L38: H rm3 | M38: H rm3 | N38: H rm3 | O38: H rm3 | P38: H rm3 | Q38: H rm3 | S38: H rm3 | T38: H rm3
A39: sample wt (g) | B39: 0.16997 | C39: 0.23157 | D39: 0.22293 | E39: 0.06355 | F39: 0.20155 | G39: 0.1293 | H39: 0.11425 | I39: 0.16123 | J39: 0.06823 | K39: 0.08464 | L39: 0.04426 | M39: 0.22112 | N39: 0.20862 | O39: 0.20942 | P39: 0.05789 | Q39: 0.07845 | S39: 0.08613 | T39: 0.04317
A40: 6M HCl solution wt | P40: 8.730937 | Q40: 8.780674 | S40: 8.697322
A41: 6M HCl sample fraction wt | P41: 1.027604 | Q41: 1.783209 | S41: 1.957733
A42: Equivalent sample wt | B42: 0.16997 | C42: 0.23157 | D42: 0.22293 | E42: 0.06355 | F42: 0.20155 | G42: 0.1293 | H42: 0.11425 | I42: 0.16123 | J42: 0.06823 | K42: 0.08464 | L42: 0.04426 | M42: 0.22112 | N42: 0.20862 | O42: 0.20942 | P42: =P39*P41/P40 -> 0.006813472089 | Q42: =Q39*Q41/Q40 -> 0.01593189157 | S42: 0.01938752449 | T42: 0.04317
A44: Sm Nd spike wt (g) | B44: 0.56913 | C44: 0.51835 | D44: 0.6104 | E44: 0.64632 | F44: 0.60958 | G44: 0.62206 | H44: 0.53529 | I44: 0.60989 | J44: 0.60562 | K44: 0.60369 | L44: 1.19676 | M44: 0.30738 | N44: 0.58316 | O44: 0.56565 | P44: 0.68651 | Q44: 0.861373 | S44: 0.781562 | T44: 0.64029
A45: measured 143/144Nd | B45: 0.5117592578 | C45: 0.511551661 | D45: 0.5118272711 | E45: 0.5117045507 | F45: 0.5116669263 | G45: 0.5119870948 | H45: 0.5117872902 | I45: 0.5120502943 | J45: 0.5120379071 | K45: 0.5116852843 | L45: 0.5117742999 | M45: 0.5120680286 | N45: 0.5117678952 | O45: 0.5117806089 | P45: 0.5112347654 | Q45: 0.5112060804 | S45: 0.5123981416 | T45: 0.5122838946
A46: 2 se | B46: 1.612367101e-06 | C46: 2.053247151e-06 | D46: 1.909896299e-06 | E46: 1.815632888e-06 | F46: 1.528132737e-06 | G46: 1.78605226e-06 | H46: 1.983401371e-06 | I46: 1.552166343e-06 | J46: 1.513608252e-06 | K46: 1.972723123e-06 | L46: 1.861148573e-06 | M46: 1.914830185e-06 | N46: 2.097516343e-06 | O46: 2.347828184e-06 | P46: 1.628721178e-06 | Q46: 1.97822614e-06 | S46: 2.347917712e-06 | T46: 2.133828916e-06
A47: measured 150/144 Nd | B47: 0.5063053496 | C47: 0.3888773726 | D47: 0.6390369719 | E47: 0.5753966936 | F47: 0.5861962531 | G47: 0.581456017 | H47: 0.5066426028 | I47: 0.5685704859 | J47: 0.5638930259 | K47: 0.4488396191 | L47: 0.4927580624 | M47: 0.5235703858 | N47: 0.5614310755 | O47: 0.6145823747 | P47: 0.3835457301 | Q47: 0.3257587319 | S47: 1.135845769 | T47: 0.5617819903
A48: measured 147/149 Sm | B48: 5.44484113 | C48: 3.808512234 | D48: 7.559108707 | E48: 6.666205725 | F48: 7.337021773 | G48: 5.932280915 | H48: 5.350878408 | I48: 5.876820867 | J48: 5.502775021 | K48: 4.683015054 | L48: 5.578505267 | M48: 4.989180787 | N48: 6.397080361 | O48: 7.195905339 | P48: 4.717883252 | Q48: 3.290228839 | S48: 21.85923104 | T48: 9.198537378
A49: measured 152/149 Sm | B49: 1.90266048 | C49: 1.908533243 | D49: 1.893107795 | E49: 1.889941431 | F49: 1.88564812 | G49: 1.89053054 | H49: 1.895467622 | I49: 1.895536264 | J49: 1.899760821 | K49: 1.896460043 | L49: 1.93654786 | M49: 1.917752235 | N49: 1.892482148 | O49: 1.890221731 | P49: 1.9002466 | Q49: 1.905405362 | S49: 1.803879335 | T49: 1.895533928
A51: Nd ugg-1 (as supplied) | B51: 14.9 | C51: ~10 | D51: 8.4 | E51: 37.1 | F51: 10 | G51: 17.2 | H51: 19.8 | I51: 13.5 | J51: 31.6 | K51: 39.3 | L51: 129 | M51: 5.9 | N51: 10.2 | O51: 8.2 | P51: 300 to 1000 | Q51: 300 to 1000
A52: Sm ugg-1 (as supplied)

Sheet Sheet1
A1: class | B1: Mmar | C1: Mmar | D1: Carb | E1: lamp | F1: carb | G1: sye | H1: carb | I1: GLM | J1: sye | K1: qfp | L1: qp | M1: carb | N1: mmar | O1: mmar
A2: Lab # | B2: CS1 | C2: CS2 | D2: CS3 | E2: CS4 | F2: CS5 | G2: CS6 | H2: CS7 | I2: CS8 | J2: CS9 | K2: CS10 | L2: CS11 | M2: CS12 | N2: CS13 | O2: CS14
A3: sample | B3: EY118558 | C3: EY118623 | D3: EY118045 | E3: EX094989 | F3: EX094653 | G3: EX094558 | H3: EY118339 | I3: EX094519 | J3: EX094492 | K3: EX095709 | L3: EX096250 | M3: EX095667 | N3: EY118801 | O3: EY118795
A4: input age of rock T (Ma) | B4: 1620 | C4: 1620 | D4: 1642 | E4: 1620 | F4: 1642 | G4: 1615 | H4: 1642 | I4: 1615 | J4: 1615 | K4: 1642 | L4: 1612 | M4: 1642 | N4: 1620 | O4: 1620
A5: Unmixed 143/144Nd | B5: 0.5116987889 | C5: 0.5115173951 | D5: 0.5117370908 | E5: 0.5116284742 | F5: 0.5115883593 | G5: 0.5119100982 | H5: 0.51172678 | I5: 0.5119762763 | J5: 0.5119649157 | K5: 0.511637643 | L5: 0.5117168904 | M5: 0.5120040853 | N5: 0.5116950549 | O5: 0.5116958423
A6: Nd ugg-1 | B6: 14.72881839 | C6: 17.45141507 | D6: 8.063435355 | E6: 35.59479712 | F6: 10.25738845 | G6: 16.54124605 | H6: 20.58338226 | I6: 13.51206744 | J6: 32.16024417 | K6: 39.88423021 | L6: 125.2439325 | M6: 5.74589873 | N6: 10.20499948 | O6: 8.470595614
A7: Sm ugg-1 | B7: 3.066987684 | C7: 3.319521514 | D7: 1.666574368 | E7: 7.244156657 | F7: 1.916018348 | G7: 3.969069712 | H7: 4.403967831 | I7: 3.151199558 | J7: 8.030250521 | K7: 7.991350778 | L7: 23.64802337 | M7: 1.417383505 | N7: 2.094272632 | O7: 1.749161101
A8: 147Sm/144Nd | B8: 0.1258959686 | C8: 0.115003892 | D8: 0.1249603659 | E8: 0.1230464278 | F8: 0.112935521 | G8: 0.1450735384 | H8: 0.1293585375 | I8: 0.141000873 | J8: 0.1509654117 | K8: 0.1211397516 | L8: 0.1141578679 | M8: 0.1491410189 | N8: 0.1240760414 | O8: 0.1248485666
A9: eNd (T=0) | B9: -18.32113669 | C9: -21.85957592 | D9: -17.57398388 | E9: -19.69276093 | F9: -20.47528055 | G9: -14.19913896 | H9: -17.77511597 | I9: -12.90820681 | J9: -13.12981635 | K9: -19.51390613 | L9: -17.96803165 | M9: -12.36573739 | N9: -18.39397596 | O9: -18.37861687
A11: 143Nd/144Nd (T) | B11: 0.5103578554 | C11: 0.5102924744 | D11: 0.5103879504 | E11: 0.5103178915 | F11: 0.5103690457 | G11: 0.5103696963 | H11: 0.5103301545 | I11: 0.5104791183 | J11: 0.5103619535 | K11: 0.510329752 | L11: 0.5105070171 | M11: 0.5103938774 | N11: 0.5103735056 | O11: 0.5103660647
A12: eNd (T) | B12: -3.645791765 | C12: -4.926405937 | D12: -2.496468263 | E12: -4.428561929 | F12: -2.866774316 | G12: -3.541078618 | H12: -3.62857632 | I12: -1.397863374 | J12: -3.692734853 | K12: -3.636460228 | L12: -0.927764844 | M12: -2.380370669 | N12: -3.339251052 | O12: -3.484995514
A13: TDM (Ma) | B13: 2484.087115 | C13: 2488.618212 | D13: 2393.960532 | E13: 2522.975161 | F13: 2333.156621 | G13: 2706.668022 | H13: 2534.827387 | I13: 2422.485238 | J13: 2825.804044 | K13: 2457.086701 | L13: 2168.37943 | M13: 2657.600067 | N13: 2440.701053 | O13: 2460.2427
A14: TCHUR (Ma) | B14: 2017.774391 | C14: 2085.643408 | D14: 1910.879775 | E14: 2084.358593 | F14: 1906.389509 | G14: 2144.939542 | H14: 2058.17434 | I14: 1809.086343 | J14: 2238.794719 | K14: 2013.706347 | L14: 1698.906246 | M14: 2028.851272 | N14: 1975.23614 | O14: 1994.708504
A15: DM at age of rock (T) | B15: 0.510865334 | C15: 0.510865334 | D15: 0.5108341408 | E15: 0.510865334 | F15: 0.5108341408 | G15: 0.5108724227 | H15: 0.5108341408 | I15: 0.5108724227 | J15: 0.5108724227 | K15: 0.5108341408 | L15: 0.5108766759 | M15: 0.5108341408 | N15: 0.510865334 | O15: 0.510865334
A16: CHUR at age of rock (T) | B16: 0.5105439891 | C16: 0.5105439891 | D16: 0.5105153989 | E16: 0.5105439891 | F16: 0.5105153989 | G16: 0.5105504863 | H16: 0.5105153989 | I16: 0.5105504863 | J16: 0.5105504863 | K16: 0.5105153989 | L16: 0.5105543845 | M16: 0.5105153989 | N16: 0.5105439891 | O16: 0.5105439891

Sheet Procedure
A1: Procedure notes
A3: 1) Sample digestion and spiking
B4: For all samples except MILO 014 30.2 (CS15), MILO 01553.05 (CS16) and G2#96.
B5: Samples powders were weighed together with a 150Nd + 147Sm mixed spike into Parr or CSIRO high pressure digestion vessels (bombs).
B6: 1) Initial digestion in 2mL 7M HNO3+4mL 28M HF on hotplate at 140C. Evaporation to dryness (with the addition of 1mL 15M HNO3 just before dryness) .
B7: 2) Followed by high pressure digestion in 2mL 7M HNO3+4mL 28M HF at 190C in laboratory oven for at least 96 hours.
B8: 3) Evaporation to almost dryness on hotplate at 140C, then addition of 1mL 15M HNO3 before taken to dryness.
B9: 4) Redissolved in 8mL 6M HCl for conversion to chlorides.
B11: For MILO 014 30.2 (CS15), MILO 01553.05 (CS16) and G2#96.
B12: Samples powders were weighed into Parr or CSIRO high pressure digestion vessels (bombs).
B13: 1) Initial digestion in 2mL 7M HNO3+4mL 28M HF on hotplate at 140C. Evaporation to dryness (with the addition of 1mL 15M HNO3 just before dryness) .
B14: 2) Followed by high pressure digestion in 2mL 7M HNO3+4mL 28M HF at 190C in laboratory oven for at least 96 hours.
B15: 3) Evaporation to almost dryness on hotplate at 140C, then addition of 1mL 15M HNO3 before taken to dryness.
B16: 4) Redissolved in 8mL 6M HCl for conversion to chlorides and sample splitting.
B17: 5) An aliquot was mixed with a 150Nd + 147Sm mixed spike in Savillex PFA vial and equilibrated for 12 hours at 140C.
A19: 2) Sm Nd separation by column chromatography.
B20: First column pass,
B21: 1) 2ml AGW X8 200-400 mesh resin in Polyprep columns.
B22: Second column pass,
B23: 2) 1mL eichrom 50-100u Ln resin SPS in quartz glass columns.
A25: 3) Isotopic abundance ratio measurements carried out on Isotopx Phoenix thermal ionization mass spectrometer (TIMS).
B26: 1) Nd - multidynamic measurement.
C27: 1) At least 5 blocks of 20 cycles (100 ratios) of multidynamic measurements taken.
C28: 2) Normalization to 146/144Nd = .7219, using exponential mass fractionation correction.
C29: 3) For Nd concentrations, 100pg blank correction applied.
B30: 2) Sm - static measurement.
C31: I) Five blocks of 20 cycles (100 ratios) of static measurements were taken.
C32: ii) For Sm concentrations, 50 pg blank correction applied.
A34: 4) Reagents.
B35: 1) Hydrochloric, hydrofluoric and nitric acids distilled in Savillex DST-1000 PFA stills.
B36: 2) Ultrapure deionised water produced using a Millipore Direct-Q 3 system.
